{"text_format":"1","workbook":"xlsx","n_sheets":5,"sheets":["Istruzioni","Input tabelle","Criticità & Indicatori","Alternative & Selezioni","Cronoprogramma 2016-2019"],"not_rendered":{"charts":0,"images":1,"macros":1,"external_links":0,"defined_names":2,"comments":0,"pivot_tables":0},"unopened":[],"bounds":{"document_bytes":16777216,"sheet_cells":100000,"rows_first":2000,"rows_last":500,"rows_between":2000,"halvings":0,"cell_chars":16384,"cell_head_chars":4096},"cells_cut":0,"cells_raw":0,"read":"whole","date_system":"1900"}

{"sheet":"Istruzioni","index":0,"n_rows":65,"n_cols":4,"rows_kept":65,"cut":false,"hidden":false,"merged":[[34,2,34,3],[48,2,48,3],[8,2,8,3],[13,2,13,3],[20,2,20,3],[29,2,30,2],[29,3,30,3]]}
[]
[null,null,"Istruzioni per la compilazione  della Mappa criticità-interventi"]
[null,null,"La “Mappa criticità-interventi” (di seguito Mappa) è costituita da cinque fogli di  calcolo, di cui solo tre sono compilabili dall’utente (evidenziati dalla linguetta della scheda di colore  blu)."]
[null,null,"·         Foglio “Istruzioni”"]
[null,null,"·         Foglio “Input tabelle”"]
[null,null,"·         Foglio “Criticità & Indicatori” (compilabile)"]
[null,null,"·         Foglio “Alternative & Selezioni” (compilabile)"]
[null,null,"·         Foglio “Cronoprogramma 2016-2019” (compilabile)"]
[null,null,"Il colore della cella ad intestazione di ciascuna tabella indica se il dato si riferisce alla precedente programmazione 2014-2017 o alla nuova programmazione 2016-2019"]
[null,null,null,"Dati PdI 2016-2019"]
[null,null,null,"Dati PdI 2014-2017"]
[]
[null,null,"1. Intestazione dei fogli di calcolo"]
[null,null," In ciascun foglio della Mappa, in testa alle tabelle, è presente una sezione di informazioni generali dove si chiede l' indicazione di ATO, Ente di Governo d’Ambito e Soggetto Gestore per il quale è stata fatta la predisposizione tariffaria, con i rispettivi codici identificativi (ID) assegnati in sede di registrazione nell’anagrafica dell’AEEGSI. Compilando questa sezione nel primo foglio della Mappa (Criticità & Indicatori), le medesime informazioni verranno automaticamente aggiornate negli altri due fogli compilabili. "]
[]
[]
[]
[]
[]
[null,null,"2. Voci foglio di calcolo \"Criticità & Indicatori\""]
[null,null,"Questo foglio di calcolo è organizzato in modo tale da raccogliere le informazioni più puntuali richieste ai Capitoli 2 e 3 dello schema tipo di cui all'Allegato A alla determina 2/2016/DSID. Ciascuna riga compilabile della tabella corrisponde ad una criticità individuata dall'EGA (è stato previsto un numero di righe sufficiente a raccogliere eventualmente tutte le criticità possibili). Per criticità ancora sussistenti ripetto alla precedente pianificazione (2014-2017), sono previsti appositi riferimenti (es. \"Criticità AEEGSI ex-determina 3/2014/DSID\" e \"Valori obiettivo PdI 2014-2017\").  "]
[null,null,"Di seguito alcune informazioni più puntuali su specifiche voci del foglio "]
[]
[null,null,"Criticità AEEGSI e sotto-area criticità 2016-2019 ex determina 2/2016/DSID","Inserire il codice delle criticità specifiche e delle sotto-aree corrispondenti utilizzando esclusivamente il menù a tendina predisposto"]
[null,null,"Criticità AEEGSI ex determina 3/2014/DSID","Inserire il codice delle criticità utilizzando esclusivamente il menù a tendina predisposto"]
[null,null,"Località interessata/e criticità","Indicare i confini amministrativi ( es. Comune/i, Provincia/e, ATO) o geografici (es. valle, pianura, bacino)"]
[null,null,"Popolazione interessata criticità (ab.)","Coerentemente alla località interessata dalla criticità, dare evidenza del numero di abitanti interessati (effettivamente rilevati o stimati o eventualmente facendo riferimento ai dati Istat)."]
[null,null,"rilevata/stimata","Nella valutazione della popolazione interessata dalla criticità, si distingue se il dato è rilevato o stimato "]
[null,null,"Indicatore di performance utilizzato","Nome dell'indicatore o breve descrizione (es. \"Stato degli impianti\")"]
[null,null,"Formula [Unità di misura]","Es. \"popolazione servita/popolazione totale (%)\""]
[]
[null,null,"Grado di attendibilità indicatore","La valutazione del grado di attendibilità segue l'omonima classificazione per codice numerico contenuta nello Schema-tipo. Il valore 1 raccoglie tutti gli indicatori costituiti da grandezze effettivamente rilevate, il valore 2 raccoglie gli indicatori \"ibridi\" (costruiti a partire da grandezze in parte stimate o riprese dalla letteratura tecnica-scientifica), mentre il valore 3 riguarda gli indicatori costituiti da sole grandezze stimate."]
[]
[null,null,"3. Voci foglio di calcolo \"Alternative & Selezione\""]
[null,null,"In questo foglio di calcolo sono raccolte le informazioni contenute nel Capitolo 4 dello Schema-tipo (\"Strategie di intervento ed analisi delle opzioni progettuali\"). Come per il foglio precedente, anche in questa tabella ciascuna riga rappresenta la criticità individuata (eventualmente replicata più volte in caso siano selezionati più interventi per risolverla), per la quale è stata condotta l'analisi delle opzioni alternative. In via previsionale, sono state inserite fino a un massimo di 10 opzioni progettuali alternative percorribili. [Nota: può accadere sia che per piu' criticita' venga selezionato il medesimo intervento, sia che per la stessa criticita' vengano selezionati piu' interventi riportati su più righe]"]
[null,null,"Di seguito alcune informazioni più puntuali su specifiche voci del foglio "]
[]
[null,null,"ID Intervento pianificato","Indicare un numero progressivo (1,2,3,..) che permetta di identificare univocamente ciascun singolo intervento soggetto ad analisi delle opzioni alternative."]
[null,null,"Titolo intervento","Si richiede un’indicazione sintetica, eventualmente anche mediante l’utilizzo di parole chiave (es. realizzazione nuovo potabilizzatore, efficientamento impianto sollevamento etc.)."]
[null,null,"Costo totale intervento","Si chiede di indicare il costo totale dell'intervento previsto per il quadriennio 2016-2019. "]
[null,null,"Popolazione interessata intervento (ab)","Dare evidenza del numero di abitanti interessati dall'intervento (effettivamente rilevati, stimati o eventualmente facendo riferimento ai dati Istat). In coerenza con la voce \"Popolazione interessata dalla criticità\", tale valore non può essere maggiore di quest'ultimo."]
[null,null,"Livello obiettivo finale","Si intende il livello obiettivo che si prevede raggiungere a conclusione dell'intervento pianificato."]
[null,null,"Opzione 0","Definire in questa voce (se considerata) solo la situazione in assenza di realizzazione dell'intervento."]
[null,null,"Costo previsto opzione 0","La misura del costo dell'Opzione 0 ad esempio può essere espressa in termini di costo potenziale (es. costo della multa) o in termini di costo per manutenzioni straordinarie."]
[null,null,"Opzione n","Come per la voce dell'intervento pianificato, si richiede un'indicazione sintetica o per parole chiave delle opzioni progettuali alternative. Con riferimento al costo, alla popolazione interessata, al livello obiettivo, vedere le medesime voci specificate per l'intervento."]
[]
[]
[null,null,"4. Voci foglio di calcolo \"Cronoprogramma 2016-2019\""]
[null,null,"Questo foglio rappresenta la sintesi della fase conclusiva del procedimento di pianificazione degli interventi per il quadriennio 2016-2019, la cui descrizione è contenuta nel Capitolo 5 dello Schema-tipo. Il foglio dà altresì evidenza degli eventuali scostamenti di cui al Capitolo 6 (sia con riferimento agli investimenti realizzati negli anni 2014-2015 che programmati negli anni 2016-2017). Rispetto ai fogli precedenti, la logica di allocazione delle criticità e dei costi nel Cronoprogramma 2016-2019 avviene per singolo intervento. La tabella contiene 250 righe, ma viene concessa  la possibilità di aggiungere o eliminare righe tramite appositi pulsanti (non è possibile aggiungere righe manualmente). [Nota: nel caso in cui un intervento risolva più criticità, occorre replicarlo su più righe in numero corrispondente alle criticità risolte]"]
[null,null,"Di seguito alcune informazioni più puntuali su specifiche voci del foglio "]
[]
[null,null,"ID Intervento pianificato","Indicare un numero progressivo (1,2,3,..) che permetta di identificare univocamente ciascun singolo intervento soggetto ad analisi delle opzioni alternative, in coerenza con la rispettiva voce del foglio \"Alternative & Selezioni\". Nel caso in cui nel Cronoprogramma si sia reso necessario scorporare l'intervento in n sotto-interventi (ad esempio a livello territoriale), in ragione della differente entrata in esercizio, l'ID di riferimento dovrà essere scomposto in maniera coerente (es. 1.1, 1.2, 1.3,.., 1.n). "]
[null,null,"Titolo intervento","Deve coincidere con quella indicata nel foglio \"Alternative & Selezioni\"."]
[null,null,"Intervento presente nel PdI 2014-2017?","Indicare se l'intervento riportato era già stato programmato nel precedente PdI 2014-2017; la scelta è limitata da un apposito menù a tendina. "]
[null,null,"Popolazione interessata criticità (ab)","Deve coincidere con l'omonimo valore indicato nel foglio \"Criticità & Indicatori\"."]
[null,null,"Rilevata/stimata","Segue lo stesso sistema di valutazione del \"Grado di affidabilità popolazione criticità\" contenuto nel foglio \"Criticità & Indicatori\"."]
[null,null,"Località interessata/e criticità","Indicare i confini amministrativi ( es. Comune/i, Provincia/e, ATO) o geografici (es. valle, pianura, bacino) su cui impatta l'intervento selezionato. Non deve/devono essere più estesa/e dell'area che subisce la criticità."]
[null,null,"Iter autorizzativo concluso?","Fa riferimento all’eventuale necessità di permessi, nulla osta, altre eventuali autorizzazioni. Nel caso l’intervento non necessiti di alcuna autorizzazione, selezionare la voce N.A. (non applicabile)."]
[null,null,"Stadio di progettazione/esecuzione","Indica il livello di maturità degli interventi pianificati; la scelta è  limitata da un apposito menù a tendina."]
[null,null,"Livello obiettivo PdI 2014-2017 ","Tale valore si riferisce agli anni 2016 e 2017; se non si dispone del valore disaggregato per i due anni di pianificazione compilare solo la cella relativa all'anno cui fa riferimento il valore obiettivo finale dell'indicatore. "]
[null,null,"Livello obiettivo PdI 2016-2019 ","Se non si dispone del valore disaggregato per i quattro anni di pianificazione compilare solo la cella relativa all'anno cui fa riferimento il valore obiettivo finale dell'indicatore. "]
[null,null,"Post-2019","Questa voce si applica nell'eventualità in cui la risoluzione della criticità sia prevista in un anno successivo al 2019, così come il raggiungimento del valore obiettivo. In questo caso si richiede anche di indicare l'anno di raggiungimento di tale valore (la cella \"Anno?\" è compilabile)."]
[null,null,"Investimento realizzato","Tale voce fa riferimento alla realizzazione degli interventi la cui spesa nel precedente ciclo di pianificazione (2014-2017) era stata imputata nel solo biennio 2014-2015, in coerenza con l'art. 11 dell'Allegato A alla delibera 664/2015/R/IDR."]
[null,null,"Investimento pianificato PdI 2014-2017","Tale voce fa riferimento agli investimenti che nel precedente PdI erano stati pianificati negli anni 2016 e 2017, che si sovrappongono con i primi due anni del nuovo ciclo di pianificazione. "]
[null,null,"Investimento pianificato PdI 2016-2019","E’ possibile imputare solo l’importo per le singole annualità. Il foglio elabora automaticamente la somma sia per la quota finanziata con tariffa sia per la quota finanziata con contributo pubblico."]

{"sheet":"Input tabelle","index":1,"n_rows":142,"n_cols":9,"rows_kept":142,"cut":false,"hidden":false,"merged":[[34,8,35,8],[3,8,4,8],[1,2,1,8],[9,8,10,8],[16,8,17,8],[23,8,24,8]]}
[]
[null,null,"Input fogli di calcolo"]
[]
[null,null,"Criticità AEEGSI ex determina 2/2016/DSID",null,"Sotto-area 2016-2019 ex determina 2/2016/DSID",null,"Criticità AEEGSI  ex determina 3/2014/DSID",null,"Grado di affidabilità popolazione"]
[null,null,"K1.1"]
[null,null,"K1.1",null,"K1",null,"A1",null,"rilevata"]
[null,null,"K2.1",null,"K2",null,"A2",null,"stimata"]
[null,null,"K3.1",null,"K3",null,"A3"]
[null,null,"K4.1",null,"K4",null,"A4"]
[null,null,"K5.1",null,"K5",null,"A5",null,"Grado di affidabilità indicatore "]
[null,null,"A1.1",null,"A1",null,"B1"]
[null,null,"A1.2",null,"A2",null,"B2",null,1]
[null,null,"A1.3",null,"A3",null,"B3",null,2]
[null,null,"A1.4",null,"A4",null,"B4",null,3]
[null,null,"A2.1",null,"A5",null,"B5"]
[null,null,"A2.2",null,"A6",null,"B6"]
[null,null,"A3.1",null,"A7",null,"B7",null,"Iter autorizzativo concluso?"]
[null,null,"A3.2",null,"A8",null,"B8"]
[null,null,"A4.1",null,"A9",null,"C1",null,"SI"]
[null,null,"A4.2",null,"A10",null,"C2",null,"NO"]
[null,null,"A4.3",null,"P1",null,"C3",null,"N.A."]
[null,null,"A5.1",null,"P2",null,"C4"]
[null,null,"A5.2",null,"P3",null,"C5"]
[null,null,"A5.3",null,"P4",null,"D1",null,"Stadio di progettazione/esecuzione"]
[null,null,"A6.1",null,"P5",null,"D2"]
[null,null,"A7.1",null,"P6",null,"D3",null,"Scheda progetto"]
[null,null,"A7.2",null,"P7",null,"D4",null,"Studio di fattibilità"]
[null,null,"A7.3",null,"B1",null,"E1",null,"Progetto preliminare"]
[null,null,"A7.4",null,"B2",null,"E2",null,"Progetto definitivo"]
[null,null,"A7.5",null,"B3",null,"E3",null,"Progetto esecutivo"]
[null,null,"A8.1",null,"B4",null,"E4",null,"Lavori aggiudicati"]
[null,null,"A8.2",null,"B5",null,"E5",null,"Lavori in corso"]
[null,null,"A9.1",null,"B6",null,"F1"]
[null,null,"A9.2",null,"B7",null,"F2"]
[null,null,"A10",null,"B8",null,"F3",null,"Intervento presente nel PdI 2014-2017?"]
[null,null,"P1.1",null,"B9",null,"F4"]
[null,null,"P1.2",null,"B10",null,"F5",null,"Sì"]
[null,null,"P1.3",null,"B11",null,"F6",null,"No"]
[null,null,"P1.4",null,"C1",null,"F7"]
[null,null,"P1.5",null,"C2",null,"F8"]
[null,null,"P1.6",null,"C3",null,"G1"]
[null,null,"P1.7",null,"C4",null,"G2"]
[null,null,"P1.8",null,"C5",null,"G3"]
[null,null,"P2.1",null,"C6",null,"G4"]
[null,null,"P2.2",null,"C7",null,"G5"]
[null,null,"P2.3",null,"C8"]
[null,null,"P3.1",null,"D1"]
[null,null,"P3.2",null,"D2"]
[null,null,"P4.1",null,"D3"]
[null,null,"P4.2",null,"D4"]
[null,null,"P4.3",null,"D5"]
[null,null,"P5.1",null,"D6"]
[null,null,"P5.2",null,"G1"]
[null,null,"P6.1",null,"G2"]
[null,null,"P6.2",null,"G3"]
[null,null,"P7.1",null,"G4"]
[null,null,"B1.1",null,"G5"]
[null,null,"B1.2",null,"M1"]
[null,null,"B1.3",null,"M2"]
[null,null,"B1.4",null,"M3"]
[null,null,"B1.5",null,"M4"]
[null,null,"B2.1",null,"M5"]
[null,null,"B3.1"]
[null,null,"B4.1"]
[null,null,"B4.2"]
[null,null,"B5.1"]
[null,null,"B6.1"]
[null,null,"B6.2"]
[null,null,"B6.3"]
[null,null,"B7.1"]
[null,null,"B8.1"]
[null,null,"B9.1"]
[null,null,"B9.2"]
[null,null,"B10.1"]
[null,null,"B10.2"]
[null,null,"B11.1"]
[null,null,"C1.1"]
[null,null,"C2.1"]
[null,null,"C2.2"]
[null,null,"C2.3"]
[null,null,"C2.4"]
[null,null,"C2.5"]
[null,null,"C2.6"]
[null,null,"C2.7"]
[null,null,"C2.8"]
[null,null,"C2.9"]
[null,null,"C3.1"]
[null,null,"C4.1"]
[null,null,"C4.2"]
[null,null,"C5.1"]
[null,null,"C6.1"]
[null,null,"C6.2"]
[null,null,"C7.1"]
[null,null,"C7.2"]
[null,null,"C8.1"]
[null,null,"D1.1"]
[null,null,"D1.2"]
[null,null,"D1.3"]
[null,null,"D1.4"]
[null,null,"D1.5"]
[null,null,"D2.1"]
[null,null,"D2.2"]
[null,null,"D2.3"]
[null,null,"D2.4"]
[null,null,"D2.5"]
[null,null,"D2.6"]
[null,null,"D2.7"]
[null,null,"D2.8"]
[null,null,"D2.9"]
[null,null,"D2.10"]
[null,null,"D3.1"]
[null,null,"D3.2"]
[null,null,"D4.1"]
[null,null,"D4.2"]
[null,null,"D4.3"]
[null,null,"D4.4"]
[null,null,"D5.1"]
[null,null,"D5.2"]
[null,null,"D6.1"]
[null,null,"D6.2"]
[null,null,"D6.3"]
[null,null,"G1.1"]
[null,null,"G2.1"]
[null,null,"G3.1"]
[null,null,"G4.1"]
[null,null,"G5.1"]
[null,null,"M1.1"]
[null,null,"M1.2"]
[null,null,"M1.3"]
[null,null,"M1.4"]
[null,null,"M1.5"]
[null,null,"M2.1"]
[null,null,"M3.1"]
[null,null,"M4.1"]
[null,null,"M4.2"]
[null,null,"M4.3"]
[null,null,"M4.4"]
[null,null,"M4.5"]
[null,null,"M4.6"]
[null,null,"M4.7"]
[null,null,"M4.8"]
[null,null,"M5.1"]

{"sheet":"Criticità & Indicatori","index":2,"n_rows":6,"n_cols":13,"rows_kept":6,"cut":false,"hidden":false,"merged":[[5,1,6,1],[5,5,6,5],[5,4,6,4],[5,3,6,3],[5,6,6,6],[5,2,6,2],[5,12,6,12],[5,10,6,10],[5,7,6,7],[5,11,6,11],[5,9,6,9],[5,8,6,8]]}
[]
[null,"ATO",null,"ID ATO",null,null,null,"Dati PdI 2016-2019"]
[null,"Ente di Governo d'Ambito",null,"ID Ente di Governo d'Ambito"]
[null,"Soggetto Gestore",null,"ID Soggetto Gestore",null,null,null,"Dati PdI 2014-2017"]
[]
[null,"Criticità AEEGSI ex determina 2/2016/DSID","Sotto-area 2016-2019 ex determina 2/2016/DSID","Criticità AEEGSI  ex determina 3/2014/DSID","Località interessata/e criticità","Popolazione interessata criticità PdI 2016-2019 (ab.)","Rilevata/ Stimata","Incidenza su pop. Totale ATO (%)","Indicatore di performance utilizzato","Formula \n[Unità di misura]","Grado di attendibilità indicatore","Livello attuale al 31-12-2015","Livello obiettivo PdI (2014-2017)"]

{"sheet":"Alternative & Selezioni","index":3,"n_rows":6,"n_cols":51,"rows_kept":6,"cut":false,"hidden":false,"merged":[[5,50,6,50],[5,7,6,7],[5,14,6,14],[5,18,6,18],[5,22,6,22],[5,26,6,26],[5,30,6,30],[5,47,6,47],[5,48,6,48],[5,49,6,49],[5,40,6,40],[5,41,6,41],[5,43,6,43],[5,44,6,44],[5,45,6,45],[5,42,6,42],[5,46,6,46],[5,33,6,33],[5,35,6,35],[5,36,6,36],[5,37,6,37],[5,39,6,39],[5,34,6,34],[5,38,6,38],[5,27,6,27],[5,28,6,28],[5,29,6,29],[5,31,6,31],[5,32,6,32],[5,6,6,6],[5,1,6,1],[5,3,6,3],[5,4,6,4],[5,5,6,5],[5,2,6,2],[5,8,6,8],[5,9,6,9],[5,10,6,10],[5,25,6,25],[5,11,6,11],[5,12,6,12],[5,13,6,13],[5,15,6,15],[5,16,6,16],[5,17,6,17],[5,19,6,19],[5,20,6,20],[5,21,6,21],[5,23,6,23],[5,24,6,24]]}
[]
[null,"ATO",{"$f":"IF('Criticità & Indicatori'!C2=0,\"\",'Criticità & Indicatori'!C2)","v":""},"ID ATO",{"$f":"IF('Criticità & Indicatori'!E2=0,\"\",'Criticità & Indicatori'!E2)","v":""},null,null,"Dati PdI 2016-2019"]
[null,"Ente di Governo d'Ambito",{"$f":"IF('Criticità & Indicatori'!C3=0,\"\",'Criticità & Indicatori'!C3)","v":""},"ID Ente di Governo d'Ambito",{"$f":"IF('Criticità & Indicatori'!E3=0,\"\",'Criticità & Indicatori'!E3)","v":""}]
[null,"Soggetto Gestore",{"$f":"IF('Criticità & Indicatori'!C4=0,\"\",'Criticità & Indicatori'!C4)","v":""},"ID Soggetto Gestore",{"$f":"IF('Criticità & Indicatori'!E4=0,\"\",'Criticità & Indicatori'!E4)","v":""},null,null,"Dati PdI 2014-2017"]
[]
[null,"Criticità AEEGSI ex determina 2/2016/DSID","Sotto-area 2016-2019 ex determina 2/2016/DSID","ID intervento pianificato","Titolo Intervento pianificato","Costo totale intervento","Popolazione interessata intervento (ab.)","Livello obiettivo finale","Opzione 0\n(Titolo intervento)","Costo previsto Opzione 0","Popolazione interessata Opzione 0","Opzione 1\n(Titolo intervento)","Costo previsto Opzione 1","Popolazione interessata Opzione 1","Livello obiettivo Opzione 1","Opzione 2\n(Titolo intervento)","Costo previsto Opzione 2","Popolazione interessata Opzione 2","Livello obiettivo Opzione 2","Opzione 3\n(Titolo intervento)","Costo previsto Opzione 3","Popolazione interessata Opzione 3","Livello obiettivo Opzione 3","Opzione 4\n(Titolo intervento)","Costo previsto Opzione 4","Popolazione interessata Opzione 4","Livello obiettivo Opzione 4","Opzione 5\n(Titolo intervento)","Costo previsto Opzione 5","Popolazione interessata Opzione 5","Livello obiettivo Opzione 5","Opzione 6\n(Titolo intervento)","Costo previsto Opzione 6","Popolazione interessata Opzione 6","Livello obiettivo Opzione 6","Opzione 7\n(Titolo intervento)","Costo previsto Opzione 7","Popolazione interessata Opzione 7","Livello obiettivo Opzione 7","Opzione 8\n(Titolo intervento)","Costo previsto Opzione 8","Popolazione interessata Opzione 8","Livello obiettivo Opzione 8","Opzione 9\n(Titolo intervento)","Costo previsto Opzione 9","Popolazione interessata Opzione 9","Livello obiettivo Opzione 9","Opzione 10\n(Titolo intervento)","Costo previsto Opzione 10","Popolazione interessata Opzione 10","Livello obiettivo Opzione 10"]

{"sheet":"Cronoprogramma 2016-2019","index":4,"n_rows":260,"n_cols":38,"rows_kept":260,"cut":false,"hidden":false,"merged":[[7,2,8,2],[7,10,8,10],[7,8,8,8],[7,9,8,9],[7,7,8,7],[7,5,8,5],[7,4,8,4],[7,6,8,6],[7,22,7,23],[7,15,7,18],[7,13,7,14],[7,12,8,12],[7,3,8,3],[1,9,1,12],[7,32,7,33],[7,11,8,11],[6,1,6,12],[6,24,6,27],[6,28,6,37],[6,20,6,23],[7,28,7,29],[7,30,7,31],[7,36,7,37],[7,34,7,35],[6,13,6,19],[7,1,8,1],[7,26,7,27],[7,24,7,25],[7,20,7,21]]}
[]
[null,null,null,null,null,null,null,null,null,"Aggiungi/Elimina righe",null,null,null,"N."]
[null,"ATO",{"$f":"IF('Criticità & Indicatori'!C2=0,\"\",'Criticità & Indicatori'!C2)","v":""},"ID ATO",{"$f":"IF('Criticità & Indicatori'!E2=0,\"\",'Criticità & Indicatori'!E2)","v":""},null,null,"Dati PdI 2016-2019",null,null,"Aggiunge a partire dalla prima riga vuota (NB compilare le prime due righe)",null,null,1]
[null,"Ente di Governo d'Ambito",{"$f":"IF('Criticità & Indicatori'!C3=0,\"\",'Criticità & Indicatori'!C3)","v":""},"ID Ente di Governo d'Ambito",{"$f":"IF('Criticità & Indicatori'!E3=0,\"\",'Criticità & Indicatori'!E3)","v":""},null,null,null,null,null,"Elimina righe vuote",null,null,1]
[null,"Soggetto Gestore",{"$f":"IF('Criticità & Indicatori'!C4=0,\"\",'Criticità & Indicatori'!C4)","v":""},"ID Soggetto Gestore",{"$f":"IF('Criticità & Indicatori'!E4=0,\"\",'Criticità & Indicatori'!E4)","v":""},null,null,"Dati PdI 2014-2017",null,null,"Elimina riga compilata: selezionare la riga che si intende eliminare"]
[]
[null,"Analisi interventi",null,null,null,null,null,null,null,null,null,null,null,"Valori obiettivo ",null,null,null,null,null,null,"Investimento realizzato ",null,null,null,"Investimento pianificato PdI 2014-2017",null,null,null,"Investimento pianificato PdI 2016-2019"]
[null,"ID intervento pianificato","Titolo Intervento pianificato","Intervento presente nel PdI 2014-2017?","Sotto-area 2016-2019 ex determina 2/2016/DSID","Criticità AEEGSI ex determina 2/2016/DSID","Popolazione interessata criticità (ab)","Popolazione interessata intervento (ab.)","Rilevata/ Stimata","Località interessata/e intervento","Iter autorizzativo concluso?","Stadio di progettazione/esecuzione","Entrata in esercizio prevista (anno)","PdI 2014-2017",null,"PdI 2016-2019",null,null,null,"Post 2019",2014,null,2015,null,2016,null,2017,null,2016,null,2017,null,2018,null,2019,null,"TOTALE 2016-2019"]
[null,null,null,null,null,null,null,null,null,null,null,null,null,2016,2017,2016,2017,2018,2019,"Anno? (Specificare)","Finanziato da tariffa","Finanziamento pubblico","Finanziato da tariffa","Finanziamento pubblico","Finanziato da tariffa","Finanziamento pubblico","Finanziato da tariffa","Finanziamento pubblico","Finanziato da tariffa","Finanziamento pubblico","Finanziato da tariffa","Finanziamento pubblico","Finanziato da tariffa","Finanziamento pubblico","Finanziato da tariffa","Finanziamento pubblico","Finanziato da tariffa","Finanziamento pubblico"]
[null,1,null,null,null,null,null,null,null,null,null,null,null,null,null,null,null,null,null,null,null,null,null,null,null,null,null,null,null,null,null,null,null,null,null,null,{"$f":"SUM(AC10+AE10+AG10+AI10)","v":0},{"$f":"SUM(AD10+AF10+AH10+AJ10)","v":0}]
[null,2,null,null,null,null,null,null,null,null,null,null,null,null,null,null,null,null,null,null,null,null,null,null,null,null,null,null,null,null,null,null,null,null,null,null,{"$f":"SUM(AC11+AE11+AG11+AI11)","v":0},{"$f":"SUM(AD11+AF11+AH11+AJ11)","v":0}]
[null,null,null,null,null,null,null,null,null,null,null,null,null,null,null,null,null,null,null,null,null,null,null,null,null,null,null,null,null,null,null,null,null,null,null,null,{"$f":"SUM(AC12+AE12+AG12+AI12)","v":0},{"$f":"SUM(AD12+AF12+AH12+AJ12)","v":0}]
[null,null,null,null,null,null,null,null,null,null,null,null,null,null,null,null,null,null,null,null,null,null,null,null,null,null,null,null,null,null,null,null,null,null,null,null,0,0]
[null,null,null,null,null,null,null,null,null,null,null,null,null,null,null,null,null,null,null,null,null,null,null,null,null,null,null,null,null,null,null,null,null,null,null,null,0,0]
[null,null,null,null,null,null,null,null,null,null,null,null,null,null,null,null,null,null,null,null,null,null,null,null,null,null,null,null,null,null,null,null,null,null,null,null,0,0]
[null,null,null,null,null,null,null,null,null,null,null,null,null,null,null,null,null,null,null,null,null,null,null,null,null,null,null,null,null,null,null,null,null,null,null,null,0,0]
[null,null,null,null,null,null,null,null,null,null,null,null,null,null,null,null,null,null,null,null,null,null,null,null,null,null,null,null,null,null,null,null,null,null,null,null,0,0]
[null,null,null,null,null,null,null,null,null,null,null,null,null,null,null,null,null,null,null,null,null,null,null,null,null,null,null,null,null,null,null,null,null,null,null,null,0,0]
[null,null,null,null,null,null,null,null,null,null,null,null,null,null,null,null,null,null,null,null,null,null,null,null,null,null,null,null,null,null,null,null,null,null,null,null,0,0]
[null,null,null,null,null,null,null,null,null,null,null,null,null,null,null,null,null,null,null,null,null,null,null,null,null,null,null,null,null,null,null,null,null,null,null,null,0,0]
[null,null,null,null,null,null,null,null,null,null,null,null,null,null,null,null,null,null,null,null,null,null,null,null,null,null,null,null,null,null,null,null,null,null,null,null,0,0]
[null,null,null,null,null,null,null,null,null,null,null,null,null,null,null,null,null,null,null,null,null,null,null,null,null,null,null,null,null,null,null,null,null,null,null,null,0,0]
[null,null,null,null,null,null,null,null,null,null,null,null,null,null,null,null,null,null,null,null,null,null,null,null,null,null,null,null,null,null,null,null,null,null,null,null,0,0]
[null,null,null,null,null,null,null,null,null,null,null,null,null,null,null,null,null,null,null,null,null,null,null,null,null,null,null,null,null,null,null,null,null,null,null,null,0,0]
[null,null,null,null,null,null,null,null,null,null,null,null,null,null,null,null,null,null,null,null,null,null,null,null,null,null,null,null,null,null,null,null,null,null,null,null,0,0]
[null,null,null,null,null,null,null,null,null,null,null,null,null,null,null,null,null,null,null,null,null,null,null,null,null,null,null,null,null,null,null,null,null,null,null,null,0,0]
[null,null,null,null,null,null,null,null,null,null,null,null,null,null,null,null,null,null,null,null,null,null,null,null,null,null,null,null,null,null,null,null,null,null,null,null,0,0]
[null,null,null,null,null,null,null,null,null,null,null,null,null,null,null,null,null,null,null,null,null,null,null,null,null,null,null,null,null,null,null,null,null,null,null,null,0,0]
[null,null,null,null,null,null,null,null,null,null,null,null,null,null,null,null,null,null,null,null,null,null,null,null,null,null,null,null,null,null,null,null,null,null,null,null,0,0]
[null,null,null,null,null,null,null,null,null,null,null,null,null,null,null,null,null,null,null,null,null,null,null,null,null,null,null,null,null,null,null,null,null,null,null,null,0,0]
[null,null,null,null,null,null,null,null,null,null,null,null,null,null,null,null,null,null,null,null,null,null,null,null,null,null,null,null,null,null,null,null,null,null,null,null,0,0]
[null,null,null,null,null,null,null,null,null,null,null,null,null,null,null,null,null,null,null,null,null,null,null,null,null,null,null,null,null,null,null,null,null,null,null,null,0,0]
[null,null,null,null,null,null,null,null,null,null,null,null,null,null,null,null,null,null,null,null,null,null,null,null,null,null,null,null,null,null,null,null,null,null,null,null,0,0]
[null,null,null,null,null,null,null,null,null,null,null,null,null,null,null,null,null,null,null,null,null,null,null,null,null,null,null,null,null,null,null,null,null,null,null,null,0,0]
[null,null,null,null,null,null,null,null,null,null,null,null,null,null,null,null,null,null,null,null,null,null,null,null,null,null,null,null,null,null,null,null,null,null,null,null,0,0]
[null,null,null,null,null,null,null,null,null,null,null,null,null,null,null,null,null,null,null,null,null,null,null,null,null,null,null,null,null,null,null,null,null,null,null,null,0,0]
[null,null,null,null,null,null,null,null,null,null,null,null,null,null,null,null,null,null,null,null,null,null,null,null,null,null,null,null,null,null,null,null,null,null,null,null,0,0]
[null,null,null,null,null,null,null,null,null,null,null,null,null,null,null,null,null,null,null,null,null,null,null,null,null,null,null,null,null,null,null,null,null,null,null,null,0,0]
[null,null,null,null,null,null,null,null,null,null,null,null,null,null,null,null,null,null,null,null,null,null,null,null,null,null,null,null,null,null,null,null,null,null,null,null,0,0]
[null,null,null,null,null,null,null,null,null,null,null,null,null,null,null,null,null,null,null,null,null,null,null,null,null,null,null,null,null,null,null,null,null,null,null,null,0,0]
[null,null,null,null,null,null,null,null,null,null,null,null,null,null,null,null,null,null,null,null,null,null,null,null,null,null,null,null,null,null,null,null,null,null,null,null,0,0]
[null,null,null,null,null,null,null,null,null,null,null,null,null,null,null,null,null,null,null,null,null,null,null,null,null,null,null,null,null,null,null,null,null,null,null,null,0,0]
[null,null,null,null,null,null,null,null,null,null,null,null,null,null,null,null,null,null,null,null,null,null,null,null,null,null,null,null,null,null,null,null,null,null,null,null,0,0]
[null,null,null,null,null,null,null,null,null,null,null,null,null,null,null,null,null,null,null,null,null,null,null,null,null,null,null,null,null,null,null,null,null,null,null,null,0,0]
[null,null,null,null,null,null,null,null,null,null,null,null,null,null,null,null,null,null,null,null,null,null,null,null,null,null,null,null,null,null,null,null,null,null,null,null,0,0]
[null,null,null,null,null,null,null,null,null,null,null,null,null,null,null,null,null,null,null,null,null,null,null,null,null,null,null,null,null,null,null,null,null,null,null,null,0,0]
[null,null,null,null,null,null,null,null,null,null,null,null,null,null,null,null,null,null,null,null,null,null,null,null,null,null,null,null,null,null,null,null,null,null,null,null,0,0]
[null,null,null,null,null,null,null,null,null,null,null,null,null,null,null,null,null,null,null,null,null,null,null,null,null,null,null,null,null,null,null,null,null,null,null,null,0,0]
[null,null,null,null,null,null,null,null,null,null,null,null,null,null,null,null,null,null,null,null,null,null,null,null,null,null,null,null,null,null,null,null,null,null,null,null,0,0]
[null,null,null,null,null,null,null,null,null,null,null,null,null,null,null,null,null,null,null,null,null,null,null,null,null,null,null,null,null,null,null,null,null,null,null,null,0,0]
[null,null,null,null,null,null,null,null,null,null,null,null,null,null,null,null,null,null,null,null,null,null,null,null,null,null,null,null,null,null,null,null,null,null,null,null,0,0]
[null,null,null,null,null,null,null,null,null,null,null,null,null,null,null,null,null,null,null,null,null,null,null,null,null,null,null,null,null,null,null,null,null,null,null,null,0,0]
[null,null,null,null,null,null,null,null,null,null,null,null,null,null,null,null,null,null,null,null,null,null,null,null,null,null,null,null,null,null,null,null,null,null,null,null,0,0]
[null,null,null,null,null,null,null,null,null,null,null,null,null,null,null,null,null,null,null,null,null,null,null,null,null,null,null,null,null,null,null,null,null,null,null,null,0,0]
[null,null,null,null,null,null,null,null,null,null,null,null,null,null,null,null,null,null,null,null,null,null,null,null,null,null,null,null,null,null,null,null,null,null,null,null,0,0]
[null,null,null,null,null,null,null,null,null,null,null,null,null,null,null,null,null,null,null,null,null,null,null,null,null,null,null,null,null,null,null,null,null,null,null,null,0,0]
[null,null,null,null,null,null,null,null,null,null,null,null,null,null,null,null,null,null,null,null,null,null,null,null,null,null,null,null,null,null,null,null,null,null,null,null,0,0]
[null,null,null,null,null,null,null,null,null,null,null,null,null,null,null,null,null,null,null,null,null,null,null,null,null,null,null,null,null,null,null,null,null,null,null,null,0,0]
[null,null,null,null,null,null,null,null,null,null,null,null,null,null,null,null,null,null,null,null,null,null,null,null,null,null,null,null,null,null,null,null,null,null,null,null,0,0]
[null,null,null,null,null,null,null,null,null,null,null,null,null,null,null,null,null,null,null,null,null,null,null,null,null,null,null,null,null,null,null,null,null,null,null,null,0,0]
[null,null,null,null,null,null,null,null,null,null,null,null,null,null,null,null,null,null,null,null,null,null,null,null,null,null,null,null,null,null,null,null,null,null,null,null,0,0]
[null,null,null,null,null,null,null,null,null,null,null,null,null,null,null,null,null,null,null,null,null,null,null,null,null,null,null,null,null,null,null,null,null,null,null,null,0,0]
[null,null,null,null,null,null,null,null,null,null,null,null,null,null,null,null,null,null,null,null,null,null,null,null,null,null,null,null,null,null,null,null,null,null,null,null,0,0]
[null,null,null,null,null,null,null,null,null,null,null,null,null,null,null,null,null,null,null,null,null,null,null,null,null,null,null,null,null,null,null,null,null,null,null,null,0,0]
[null,null,null,null,null,null,null,null,null,null,null,null,null,null,null,null,null,null,null,null,null,null,null,null,null,null,null,null,null,null,null,null,null,null,null,null,0,0]
[null,null,null,null,null,null,null,null,null,null,null,null,null,null,null,null,null,null,null,null,null,null,null,null,null,null,null,null,null,null,null,null,null,null,null,null,0,0]
[null,null,null,null,null,null,null,null,null,null,null,null,null,null,null,null,null,null,null,null,null,null,null,null,null,null,null,null,null,null,null,null,null,null,null,null,0,0]
[null,null,null,null,null,null,null,null,null,null,null,null,null,null,null,null,null,null,null,null,null,null,null,null,null,null,null,null,null,null,null,null,null,null,null,null,0,0]
[null,null,null,null,null,null,null,null,null,null,null,null,null,null,null,null,null,null,null,null,null,null,null,null,null,null,null,null,null,null,null,null,null,null,null,null,0,0]
[null,null,null,null,null,null,null,null,null,null,null,null,null,null,null,null,null,null,null,null,null,null,null,null,null,null,null,null,null,null,null,null,null,null,null,null,0,0]
[null,null,null,null,null,null,null,null,null,null,null,null,null,null,null,null,null,null,null,null,null,null,null,null,null,null,null,null,null,null,null,null,null,null,null,null,0,0]
[null,null,null,null,null,null,null,null,null,null,null,null,null,null,null,null,null,null,null,null,null,null,null,null,null,null,null,null,null,null,null,null,null,null,null,null,0,0]
[null,null,null,null,null,null,null,null,null,null,null,null,null,null,null,null,null,null,null,null,null,null,null,null,null,null,null,null,null,null,null,null,null,null,null,null,0,0]
[null,null,null,null,null,null,null,null,null,null,null,null,null,null,null,null,null,null,null,null,null,null,null,null,null,null,null,null,null,null,null,null,null,null,null,null,0,0]
[null,null,null,null,null,null,null,null,null,null,null,null,null,null,null,null,null,null,null,null,null,null,null,null,null,null,null,null,null,null,null,null,null,null,null,null,0,0]
[null,null,null,null,null,null,null,null,null,null,null,null,null,null,null,null,null,null,null,null,null,null,null,null,null,null,null,null,null,null,null,null,null,null,null,null,0,0]
[null,null,null,null,null,null,null,null,null,null,null,null,null,null,null,null,null,null,null,null,null,null,null,null,null,null,null,null,null,null,null,null,null,null,null,null,0,0]
[null,null,null,null,null,null,null,null,null,null,null,null,null,null,null,null,null,null,null,null,null,null,null,null,null,null,null,null,null,null,null,null,null,null,null,null,0,0]
[null,null,null,null,null,null,null,null,null,null,null,null,null,null,null,null,null,null,null,null,null,null,null,null,null,null,null,null,null,null,null,null,null,null,null,null,0,0]
[null,null,null,null,null,null,null,null,null,null,null,null,null,null,null,null,null,null,null,null,null,null,null,null,null,null,null,null,null,null,null,null,null,null,null,null,0,0]
[null,null,null,null,null,null,null,null,null,null,null,null,null,null,null,null,null,null,null,null,null,null,null,null,null,null,null,null,null,null,null,null,null,null,null,null,0,0]
[null,null,null,null,null,null,null,null,null,null,null,null,null,null,null,null,null,null,null,null,null,null,null,null,null,null,null,null,null,null,null,null,null,null,null,null,0,0]
[null,null,null,null,null,null,null,null,null,null,null,null,null,null,null,null,null,null,null,null,null,null,null,null,null,null,null,null,null,null,null,null,null,null,null,null,0,0]
[null,null,null,null,null,null,null,null,null,null,null,null,null,null,null,null,null,null,null,null,null,null,null,null,null,null,null,null,null,null,null,null,null,null,null,null,0,0]
[null,null,null,null,null,null,null,null,null,null,null,null,null,null,null,null,null,null,null,null,null,null,null,null,null,null,null,null,null,null,null,null,null,null,null,null,0,0]
[null,null,null,null,null,null,null,null,null,null,null,null,null,null,null,null,null,null,null,null,null,null,null,null,null,null,null,null,null,null,null,null,null,null,null,null,0,0]
[null,null,null,null,null,null,null,null,null,null,null,null,null,null,null,null,null,null,null,null,null,null,null,null,null,null,null,null,null,null,null,null,null,null,null,null,0,0]
[null,null,null,null,null,null,null,null,null,null,null,null,null,null,null,null,null,null,null,null,null,null,null,null,null,null,null,null,null,null,null,null,null,null,null,null,0,0]
[null,null,null,null,null,null,null,null,null,null,null,null,null,null,null,null,null,null,null,null,null,null,null,null,null,null,null,null,null,null,null,null,null,null,null,null,0,0]
[null,null,null,null,null,null,null,null,null,null,null,null,null,null,null,null,null,null,null,null,null,null,null,null,null,null,null,null,null,null,null,null,null,null,null,null,0,0]
[null,null,null,null,null,null,null,null,null,null,null,null,null,null,null,null,null,null,null,null,null,null,null,null,null,null,null,null,null,null,null,null,null,null,null,null,0,0]
[null,null,null,null,null,null,null,null,null,null,null,null,null,null,null,null,null,null,null,null,null,null,null,null,null,null,null,null,null,null,null,null,null,null,null,null,0,0]
[null,null,null,null,null,null,null,null,null,null,null,null,null,null,null,null,null,null,null,null,null,null,null,null,null,null,null,null,null,null,null,null,null,null,null,null,0,0]
[null,null,null,null,null,null,null,null,null,null,null,null,null,null,null,null,null,null,null,null,null,null,null,null,null,null,null,null,null,null,null,null,null,null,null,null,0,0]
[null,null,null,null,null,null,null,null,null,null,null,null,null,null,null,null,null,null,null,null,null,null,null,null,null,null,null,null,null,null,null,null,null,null,null,null,0,0]
[null,null,null,null,null,null,null,null,null,null,null,null,null,null,null,null,null,null,null,null,null,null,null,null,null,null,null,null,null,null,null,null,null,null,null,null,0,0]
[null,null,null,null,null,null,null,null,null,null,null,null,null,null,null,null,null,null,null,null,null,null,null,null,null,null,null,null,null,null,null,null,null,null,null,null,0,0]
[null,null,null,null,null,null,null,null,null,null,null,null,null,null,null,null,null,null,null,null,null,null,null,null,null,null,null,null,null,null,null,null,null,null,null,null,0,0]
[null,null,null,null,null,null,null,null,null,null,null,null,null,null,null,null,null,null,null,null,null,null,null,null,null,null,null,null,null,null,null,null,null,null,null,null,0,0]
[null,null,null,null,null,null,null,null,null,null,null,null,null,null,null,null,null,null,null,null,null,null,null,null,null,null,null,null,null,null,null,null,null,null,null,null,0,0]
[null,null,null,null,null,null,null,null,null,null,null,null,null,null,null,null,null,null,null,null,null,null,null,null,null,null,null,null,null,null,null,null,null,null,null,null,0,0]
[null,null,null,null,null,null,null,null,null,null,null,null,null,null,null,null,null,null,null,null,null,null,null,null,null,null,null,null,null,null,null,null,null,null,null,null,0,0]
[null,null,null,null,null,null,null,null,null,null,null,null,null,null,null,null,null,null,null,null,null,null,null,null,null,null,null,null,null,null,null,null,null,null,null,null,0,0]
[null,null,null,null,null,null,null,null,null,null,null,null,null,null,null,null,null,null,null,null,null,null,null,null,null,null,null,null,null,null,null,null,null,null,null,null,0,0]
[null,null,null,null,null,null,null,null,null,null,null,null,null,null,null,null,null,null,null,null,null,null,null,null,null,null,null,null,null,null,null,null,null,null,null,null,0,0]
[null,null,null,null,null,null,null,null,null,null,null,null,null,null,null,null,null,null,null,null,null,null,null,null,null,null,null,null,null,null,null,null,null,null,null,null,0,0]
[null,null,null,null,null,null,null,null,null,null,null,null,null,null,null,null,null,null,null,null,null,null,null,null,null,null,null,null,null,null,null,null,null,null,null,null,0,0]
[null,null,null,null,null,null,null,null,null,null,null,null,null,null,null,null,null,null,null,null,null,null,null,null,null,null,null,null,null,null,null,null,null,null,null,null,0,0]
[null,null,null,null,null,null,null,null,null,null,null,null,null,null,null,null,null,null,null,null,null,null,null,null,null,null,null,null,null,null,null,null,null,null,null,null,0,0]
[null,null,null,null,null,null,null,null,null,null,null,null,null,null,null,null,null,null,null,null,null,null,null,null,null,null,null,null,null,null,null,null,null,null,null,null,0,0]
[null,null,null,null,null,null,null,null,null,null,null,null,null,null,null,null,null,null,null,null,null,null,null,null,null,null,null,null,null,null,null,null,null,null,null,null,0,0]
[null,null,null,null,null,null,null,null,null,null,null,null,null,null,null,null,null,null,null,null,null,null,null,null,null,null,null,null,null,null,null,null,null,null,null,null,0,0]
[null,null,null,null,null,null,null,null,null,null,null,null,null,null,null,null,null,null,null,null,null,null,null,null,null,null,null,null,null,null,null,null,null,null,null,null,0,0]
[null,null,null,null,null,null,null,null,null,null,null,null,null,null,null,null,null,null,null,null,null,null,null,null,null,null,null,null,null,null,null,null,null,null,null,null,0,0]
[null,null,null,null,null,null,null,null,null,null,null,null,null,null,null,null,null,null,null,null,null,null,null,null,null,null,null,null,null,null,null,null,null,null,null,null,0,0]
[null,null,null,null,null,null,null,null,null,null,null,null,null,null,null,null,null,null,null,null,null,null,null,null,null,null,null,null,null,null,null,null,null,null,null,null,0,0]
[null,null,null,null,null,null,null,null,null,null,null,null,null,null,null,null,null,null,null,null,null,null,null,null,null,null,null,null,null,null,null,null,null,null,null,null,0,0]
[null,null,null,null,null,null,null,null,null,null,null,null,null,null,null,null,null,null,null,null,null,null,null,null,null,null,null,null,null,null,null,null,null,null,null,null,0,0]
[null,null,null,null,null,null,null,null,null,null,null,null,null,null,null,null,null,null,null,null,null,null,null,null,null,null,null,null,null,null,null,null,null,null,null,null,0,0]
[null,null,null,null,null,null,null,null,null,null,null,null,null,null,null,null,null,null,null,null,null,null,null,null,null,null,null,null,null,null,null,null,null,null,null,null,0,0]
[null,null,null,null,null,null,null,null,null,null,null,null,null,null,null,null,null,null,null,null,null,null,null,null,null,null,null,null,null,null,null,null,null,null,null,null,0,0]
[null,null,null,null,null,null,null,null,null,null,null,null,null,null,null,null,null,null,null,null,null,null,null,null,null,null,null,null,null,null,null,null,null,null,null,null,0,0]
[null,null,null,null,null,null,null,null,null,null,null,null,null,null,null,null,null,null,null,null,null,null,null,null,null,null,null,null,null,null,null,null,null,null,null,null,0,0]
[null,null,null,null,null,null,null,null,null,null,null,null,null,null,null,null,null,null,null,null,null,null,null,null,null,null,null,null,null,null,null,null,null,null,null,null,0,0]
[null,null,null,null,null,null,null,null,null,null,null,null,null,null,null,null,null,null,null,null,null,null,null,null,null,null,null,null,null,null,null,null,null,null,null,null,0,0]
[null,null,null,null,null,null,null,null,null,null,null,null,null,null,null,null,null,null,null,null,null,null,null,null,null,null,null,null,null,null,null,null,null,null,null,null,0,0]
[null,null,null,null,null,null,null,null,null,null,null,null,null,null,null,null,null,null,null,null,null,null,null,null,null,null,null,null,null,null,null,null,null,null,null,null,0,0]
[null,null,null,null,null,null,null,null,null,null,null,null,null,null,null,null,null,null,null,null,null,null,null,null,null,null,null,null,null,null,null,null,null,null,null,null,0,0]
[null,null,null,null,null,null,null,null,null,null,null,null,null,null,null,null,null,null,null,null,null,null,null,null,null,null,null,null,null,null,null,null,null,null,null,null,0,0]
[null,null,null,null,null,null,null,null,null,null,null,null,null,null,null,null,null,null,null,null,null,null,null,null,null,null,null,null,null,null,null,null,null,null,null,null,0,0]
[null,null,null,null,null,null,null,null,null,null,null,null,null,null,null,null,null,null,null,null,null,null,null,null,null,null,null,null,null,null,null,null,null,null,null,null,0,0]
[null,null,null,null,null,null,null,null,null,null,null,null,null,null,null,null,null,null,null,null,null,null,null,null,null,null,null,null,null,null,null,null,null,null,null,null,0,0]
[null,null,null,null,null,null,null,null,null,null,null,null,null,null,null,null,null,null,null,null,null,null,null,null,null,null,null,null,null,null,null,null,null,null,null,null,0,0]
[null,null,null,null,null,null,null,null,null,null,null,null,null,null,null,null,null,null,null,null,null,null,null,null,null,null,null,null,null,null,null,null,null,null,null,null,0,0]
[null,null,null,null,null,null,null,null,null,null,null,null,null,null,null,null,null,null,null,null,null,null,null,null,null,null,null,null,null,null,null,null,null,null,null,null,0,0]
[null,null,null,null,null,null,null,null,null,null,null,null,null,null,null,null,null,null,null,null,null,null,null,null,null,null,null,null,null,null,null,null,null,null,null,null,0,0]
[null,null,null,null,null,null,null,null,null,null,null,null,null,null,null,null,null,null,null,null,null,null,null,null,null,null,null,null,null,null,null,null,null,null,null,null,0,0]
[null,null,null,null,null,null,null,null,null,null,null,null,null,null,null,null,null,null,null,null,null,null,null,null,null,null,null,null,null,null,null,null,null,null,null,null,0,0]
[null,null,null,null,null,null,null,null,null,null,null,null,null,null,null,null,null,null,null,null,null,null,null,null,null,null,null,null,null,null,null,null,null,null,null,null,0,0]
[null,null,null,null,null,null,null,null,null,null,null,null,null,null,null,null,null,null,null,null,null,null,null,null,null,null,null,null,null,null,null,null,null,null,null,null,0,0]
[null,null,null,null,null,null,null,null,null,null,null,null,null,null,null,null,null,null,null,null,null,null,null,null,null,null,null,null,null,null,null,null,null,null,null,null,0,0]
[null,null,null,null,null,null,null,null,null,null,null,null,null,null,null,null,null,null,null,null,null,null,null,null,null,null,null,null,null,null,null,null,null,null,null,null,0,0]
[null,null,null,null,null,null,null,null,null,null,null,null,null,null,null,null,null,null,null,null,null,null,null,null,null,null,null,null,null,null,null,null,null,null,null,null,0,0]
[null,null,null,null,null,null,null,null,null,null,null,null,null,null,null,null,null,null,null,null,null,null,null,null,null,null,null,null,null,null,null,null,null,null,null,null,0,0]
[null,null,null,null,null,null,null,null,null,null,null,null,null,null,null,null,null,null,null,null,null,null,null,null,null,null,null,null,null,null,null,null,null,null,null,null,0,0]
[null,null,null,null,null,null,null,null,null,null,null,null,null,null,null,null,null,null,null,null,null,null,null,null,null,null,null,null,null,null,null,null,null,null,null,null,0,0]
[null,null,null,null,null,null,null,null,null,null,null,null,null,null,null,null,null,null,null,null,null,null,null,null,null,null,null,null,null,null,null,null,null,null,null,null,0,0]
[null,null,null,null,null,null,null,null,null,null,null,null,null,null,null,null,null,null,null,null,null,null,null,null,null,null,null,null,null,null,null,null,null,null,null,null,0,0]
[null,null,null,null,null,null,null,null,null,null,null,null,null,null,null,null,null,null,null,null,null,null,null,null,null,null,null,null,null,null,null,null,null,null,null,null,0,0]
[null,null,null,null,null,null,null,null,null,null,null,null,null,null,null,null,null,null,null,null,null,null,null,null,null,null,null,null,null,null,null,null,null,null,null,null,0,0]
[null,null,null,null,null,null,null,null,null,null,null,null,null,null,null,null,null,null,null,null,null,null,null,null,null,null,null,null,null,null,null,null,null,null,null,null,0,0]
[null,null,null,null,null,null,null,null,null,null,null,null,null,null,null,null,null,null,null,null,null,null,null,null,null,null,null,null,null,null,null,null,null,null,null,null,0,0]
[null,null,null,null,null,null,null,null,null,null,null,null,null,null,null,null,null,null,null,null,null,null,null,null,null,null,null,null,null,null,null,null,null,null,null,null,0,0]
[null,null,null,null,null,null,null,null,null,null,null,null,null,null,null,null,null,null,null,null,null,null,null,null,null,null,null,null,null,null,null,null,null,null,null,null,0,0]
[null,null,null,null,null,null,null,null,null,null,null,null,null,null,null,null,null,null,null,null,null,null,null,null,null,null,null,null,null,null,null,null,null,null,null,null,0,0]
[null,null,null,null,null,null,null,null,null,null,null,null,null,null,null,null,null,null,null,null,null,null,null,null,null,null,null,null,null,null,null,null,null,null,null,null,0,0]
[null,null,null,null,null,null,null,null,null,null,null,null,null,null,null,null,null,null,null,null,null,null,null,null,null,null,null,null,null,null,null,null,null,null,null,null,0,0]
[null,null,null,null,null,null,null,null,null,null,null,null,null,null,null,null,null,null,null,null,null,null,null,null,null,null,null,null,null,null,null,null,null,null,null,null,0,0]
[null,null,null,null,null,null,null,null,null,null,null,null,null,null,null,null,null,null,null,null,null,null,null,null,null,null,null,null,null,null,null,null,null,null,null,null,0,0]
[null,null,null,null,null,null,null,null,null,null,null,null,null,null,null,null,null,null,null,null,null,null,null,null,null,null,null,null,null,null,null,null,null,null,null,null,{"$f":"SUM(AC160+AE160+AG160+AI160)","v":0},0]
[null,null,null,null,null,null,null,null,null,null,null,null,null,null,null,null,null,null,null,null,null,null,null,null,null,null,null,null,null,null,null,null,null,null,null,null,0,0]
[null,null,null,null,null,null,null,null,null,null,null,null,null,null,null,null,null,null,null,null,null,null,null,null,null,null,null,null,null,null,null,null,null,null,null,null,0,0]
[null,null,null,null,null,null,null,null,null,null,null,null,null,null,null,null,null,null,null,null,null,null,null,null,null,null,null,null,null,null,null,null,null,null,null,null,0,0]
[null,null,null,null,null,null,null,null,null,null,null,null,null,null,null,null,null,null,null,null,null,null,null,null,null,null,null,null,null,null,null,null,null,null,null,null,0,0]
[null,null,null,null,null,null,null,null,null,null,null,null,null,null,null,null,null,null,null,null,null,null,null,null,null,null,null,null,null,null,null,null,null,null,null,null,0,0]
[null,null,null,null,null,null,null,null,null,null,null,null,null,null,null,null,null,null,null,null,null,null,null,null,null,null,null,null,null,null,null,null,null,null,null,null,0,0]
[null,null,null,null,null,null,null,null,null,null,null,null,null,null,null,null,null,null,null,null,null,null,null,null,null,null,null,null,null,null,null,null,null,null,null,null,0,0]
[null,null,null,null,null,null,null,null,null,null,null,null,null,null,null,null,null,null,null,null,null,null,null,null,null,null,null,null,null,null,null,null,null,null,null,null,0,0]
[null,null,null,null,null,null,null,null,null,null,null,null,null,null,null,null,null,null,null,null,null,null,null,null,null,null,null,null,null,null,null,null,null,null,null,null,0,0]
[null,null,null,null,null,null,null,null,null,null,null,null,null,null,null,null,null,null,null,null,null,null,null,null,null,null,null,null,null,null,null,null,null,null,null,null,0,0]
[null,null,null,null,null,null,null,null,null,null,null,null,null,null,null,null,null,null,null,null,null,null,null,null,null,null,null,null,null,null,null,null,null,null,null,null,0,0]
[null,null,null,null,null,null,null,null,null,null,null,null,null,null,null,null,null,null,null,null,null,null,null,null,null,null,null,null,null,null,null,null,null,null,null,null,0,0]
[null,null,null,null,null,null,null,null,null,null,null,null,null,null,null,null,null,null,null,null,null,null,null,null,null,null,null,null,null,null,null,null,null,null,null,null,0,0]
[null,null,null,null,null,null,null,null,null,null,null,null,null,null,null,null,null,null,null,null,null,null,null,null,null,null,null,null,null,null,null,null,null,null,null,null,0,0]
[null,null,null,null,null,null,null,null,null,null,null,null,null,null,null,null,null,null,null,null,null,null,null,null,null,null,null,null,null,null,null,null,null,null,null,null,0,0]
[null,null,null,null,null,null,null,null,null,null,null,null,null,null,null,null,null,null,null,null,null,null,null,null,null,null,null,null,null,null,null,null,null,null,null,null,0,0]
[null,null,null,null,null,null,null,null,null,null,null,null,null,null,null,null,null,null,null,null,null,null,null,null,null,null,null,null,null,null,null,null,null,null,null,null,0,0]
[null,null,null,null,null,null,null,null,null,null,null,null,null,null,null,null,null,null,null,null,null,null,null,null,null,null,null,null,null,null,null,null,null,null,null,null,0,0]
[null,null,null,null,null,null,null,null,null,null,null,null,null,null,null,null,null,null,null,null,null,null,null,null,null,null,null,null,null,null,null,null,null,null,null,null,0,0]
[null,null,null,null,null,null,null,null,null,null,null,null,null,null,null,null,null,null,null,null,null,null,null,null,null,null,null,null,null,null,null,null,null,null,null,null,0,0]
[null,null,null,null,null,null,null,null,null,null,null,null,null,null,null,null,null,null,null,null,null,null,null,null,null,null,null,null,null,null,null,null,null,null,null,null,0,0]
[null,null,null,null,null,null,null,null,null,null,null,null,null,null,null,null,null,null,null,null,null,null,null,null,null,null,null,null,null,null,null,null,null,null,null,null,0,0]
[null,null,null,null,null,null,null,null,null,null,null,null,null,null,null,null,null,null,null,null,null,null,null,null,null,null,null,null,null,null,null,null,null,null,null,null,0,0]
[null,null,null,null,null,null,null,null,null,null,null,null,null,null,null,null,null,null,null,null,null,null,null,null,null,null,null,null,null,null,null,null,null,null,null,null,0,0]
[null,null,null,null,null,null,null,null,null,null,null,null,null,null,null,null,null,null,null,null,null,null,null,null,null,null,null,null,null,null,null,null,null,null,null,null,0,0]
[null,null,null,null,null,null,null,null,null,null,null,null,null,null,null,null,null,null,null,null,null,null,null,null,null,null,null,null,null,null,null,null,null,null,null,null,0,0]
[null,null,null,null,null,null,null,null,null,null,null,null,null,null,null,null,null,null,null,null,null,null,null,null,null,null,null,null,null,null,null,null,null,null,null,null,0,0]
[null,null,null,null,null,null,null,null,null,null,null,null,null,null,null,null,null,null,null,null,null,null,null,null,null,null,null,null,null,null,null,null,null,null,null,null,0,0]
[null,null,null,null,null,null,null,null,null,null,null,null,null,null,null,null,null,null,null,null,null,null,null,null,null,null,null,null,null,null,null,null,null,null,null,null,0,0]
[null,null,null,null,null,null,null,null,null,null,null,null,null,null,null,null,null,null,null,null,null,null,null,null,null,null,null,null,null,null,null,null,null,null,null,null,0,0]
[null,null,null,null,null,null,null,null,null,null,null,null,null,null,null,null,null,null,null,null,null,null,null,null,null,null,null,null,null,null,null,null,null,null,null,null,0,0]
[null,null,null,null,null,null,null,null,null,null,null,null,null,null,null,null,null,null,null,null,null,null,null,null,null,null,null,null,null,null,null,null,null,null,null,null,0,0]
[null,null,null,null,null,null,null,null,null,null,null,null,null,null,null,null,null,null,null,null,null,null,null,null,null,null,null,null,null,null,null,null,null,null,null,null,0,0]
[null,null,null,null,null,null,null,null,null,null,null,null,null,null,null,null,null,null,null,null,null,null,null,null,null,null,null,null,null,null,null,null,null,null,null,null,0,0]
[null,null,null,null,null,null,null,null,null,null,null,null,null,null,null,null,null,null,null,null,null,null,null,null,null,null,null,null,null,null,null,null,null,null,null,null,0,0]
[null,null,null,null,null,null,null,null,null,null,null,null,null,null,null,null,null,null,null,null,null,null,null,null,null,null,null,null,null,null,null,null,null,null,null,null,0,0]
[null,null,null,null,null,null,null,null,null,null,null,null,null,null,null,null,null,null,null,null,null,null,null,null,null,null,null,null,null,null,null,null,null,null,null,null,0,0]
[null,null,null,null,null,null,null,null,null,null,null,null,null,null,null,null,null,null,null,null,null,null,null,null,null,null,null,null,null,null,null,null,null,null,null,null,0,0]
[null,null,null,null,null,null,null,null,null,null,null,null,null,null,null,null,null,null,null,null,null,null,null,null,null,null,null,null,null,null,null,null,null,null,null,null,0,0]
[null,null,null,null,null,null,null,null,null,null,null,null,null,null,null,null,null,null,null,null,null,null,null,null,null,null,null,null,null,null,null,null,null,null,null,null,0,0]
[null,null,null,null,null,null,null,null,null,null,null,null,null,null,null,null,null,null,null,null,null,null,null,null,null,null,null,null,null,null,null,null,null,null,null,null,0,0]
[null,null,null,null,null,null,null,null,null,null,null,null,null,null,null,null,null,null,null,null,null,null,null,null,null,null,null,null,null,null,null,null,null,null,null,null,0,0]
[null,null,null,null,null,null,null,null,null,null,null,null,null,null,null,null,null,null,null,null,null,null,null,null,null,null,null,null,null,null,null,null,null,null,null,null,0,0]
[null,null,null,null,null,null,null,null,null,null,null,null,null,null,null,null,null,null,null,null,null,null,null,null,null,null,null,null,null,null,null,null,null,null,null,null,0,0]
[null,null,null,null,null,null,null,null,null,null,null,null,null,null,null,null,null,null,null,null,null,null,null,null,null,null,null,null,null,null,null,null,null,null,null,null,0,0]
[null,null,null,null,null,null,null,null,null,null,null,null,null,null,null,null,null,null,null,null,null,null,null,null,null,null,null,null,null,null,null,null,null,null,null,null,0,0]
[null,null,null,null,null,null,null,null,null,null,null,null,null,null,null,null,null,null,null,null,null,null,null,null,null,null,null,null,null,null,null,null,null,null,null,null,0,0]
[null,null,null,null,null,null,null,null,null,null,null,null,null,null,null,null,null,null,null,null,null,null,null,null,null,null,null,null,null,null,null,null,null,null,null,null,0,0]
[null,null,null,null,null,null,null,null,null,null,null,null,null,null,null,null,null,null,null,null,null,null,null,null,null,null,null,null,null,null,null,null,null,null,null,null,0,0]
[null,null,null,null,null,null,null,null,null,null,null,null,null,null,null,null,null,null,null,null,null,null,null,null,null,null,null,null,null,null,null,null,null,null,null,null,0,0]
[null,null,null,null,null,null,null,null,null,null,null,null,null,null,null,null,null,null,null,null,null,null,null,null,null,null,null,null,null,null,null,null,null,null,null,null,0,0]
[null,null,null,null,null,null,null,null,null,null,null,null,null,null,null,null,null,null,null,null,null,null,null,null,null,null,null,null,null,null,null,null,null,null,null,null,0,0]
[null,null,null,null,null,null,null,null,null,null,null,null,null,null,null,null,null,null,null,null,null,null,null,null,null,null,null,null,null,null,null,null,null,null,null,null,0,0]
[null,null,null,null,null,null,null,null,null,null,null,null,null,null,null,null,null,null,null,null,null,null,null,null,null,null,null,null,null,null,null,null,null,null,null,null,0,0]
[null,null,null,null,null,null,null,null,null,null,null,null,null,null,null,null,null,null,null,null,null,null,null,null,null,null,null,null,null,null,null,null,null,null,null,null,0,0]
[null,null,null,null,null,null,null,null,null,null,null,null,null,null,null,null,null,null,null,null,null,null,null,null,null,null,null,null,null,null,null,null,null,null,null,null,0,0]
[null,null,null,null,null,null,null,null,null,null,null,null,null,null,null,null,null,null,null,null,null,null,null,null,null,null,null,null,null,null,null,null,null,null,null,null,0,0]
[null,null,null,null,null,null,null,null,null,null,null,null,null,null,null,null,null,null,null,null,null,null,null,null,null,null,null,null,null,null,null,null,null,null,null,null,0,0]
[null,null,null,null,null,null,null,null,null,null,null,null,null,null,null,null,null,null,null,null,null,null,null,null,null,null,null,null,null,null,null,null,null,null,null,null,0,0]
[null,null,null,null,null,null,null,null,null,null,null,null,null,null,null,null,null,null,null,null,null,null,null,null,null,null,null,null,null,null,null,null,null,null,null,null,0,0]
[null,null,null,null,null,null,null,null,null,null,null,null,null,null,null,null,null,null,null,null,null,null,null,null,null,null,null,null,null,null,null,null,null,null,null,null,0,0]
[null,null,null,null,null,null,null,null,null,null,null,null,null,null,null,null,null,null,null,null,null,null,null,null,null,null,null,null,null,null,null,null,null,null,null,null,{"$f":"SUM(AC222+AE222+AG222+AI222)","v":0},{"$f":"SUM(AD222+AF222+AH222+AJ222)","v":0}]
[null,null,null,null,null,null,null,null,null,null,null,null,null,null,null,null,null,null,null,null,null,null,null,null,null,null,null,null,null,null,null,null,null,null,null,null,0,0]
[null,null,null,null,null,null,null,null,null,null,null,null,null,null,null,null,null,null,null,null,null,null,null,null,null,null,null,null,null,null,null,null,null,null,null,null,0,0]
[null,null,null,null,null,null,null,null,null,null,null,null,null,null,null,null,null,null,null,null,null,null,null,null,null,null,null,null,null,null,null,null,null,null,null,null,0,0]
[null,null,null,null,null,null,null,null,null,null,null,null,null,null,null,null,null,null,null,null,null,null,null,null,null,null,null,null,null,null,null,null,null,null,null,null,0,0]
[null,null,null,null,null,null,null,null,null,null,null,null,null,null,null,null,null,null,null,null,null,null,null,null,null,null,null,null,null,null,null,null,null,null,null,null,0,0]
[null,null,null,null,null,null,null,null,null,null,null,null,null,null,null,null,null,null,null,null,null,null,null,null,null,null,null,null,null,null,null,null,null,null,null,null,0,0]
[null,null,null,null,null,null,null,null,null,null,null,null,null,null,null,null,null,null,null,null,null,null,null,null,null,null,null,null,null,null,null,null,null,null,null,null,0,0]
[null,null,null,null,null,null,null,null,null,null,null,null,null,null,null,null,null,null,null,null,null,null,null,null,null,null,null,null,null,null,null,null,null,null,null,null,0,0]
[null,null,null,null,null,null,null,null,null,null,null,null,null,null,null,null,null,null,null,null,null,null,null,null,null,null,null,null,null,null,null,null,null,null,null,null,0,0]
[null,null,null,null,null,null,null,null,null,null,null,null,null,null,null,null,null,null,null,null,null,null,null,null,null,null,null,null,null,null,null,null,null,null,null,null,0,0]
[null,null,null,null,null,null,null,null,null,null,null,null,null,null,null,null,null,null,null,null,null,null,null,null,null,null,null,null,null,null,null,null,null,null,null,null,0,0]
[null,null,null,null,null,null,null,null,null,null,null,null,null,null,null,null,null,null,null,null,null,null,null,null,null,null,null,null,null,null,null,null,null,null,null,null,0,0]
[null,null,null,null,null,null,null,null,null,null,null,null,null,null,null,null,null,null,null,null,null,null,null,null,null,null,null,null,null,null,null,null,null,null,null,null,0,0]
[null,null,null,null,null,null,null,null,null,null,null,null,null,null,null,null,null,null,null,null,null,null,null,null,null,null,null,null,null,null,null,null,null,null,null,null,0,0]
[null,null,null,null,null,null,null,null,null,null,null,null,null,null,null,null,null,null,null,null,null,null,null,null,null,null,null,null,null,null,null,null,null,null,null,null,0,0]
[null,null,null,null,null,null,null,null,null,null,null,null,null,null,null,null,null,null,null,null,null,null,null,null,null,null,null,null,null,null,null,null,null,null,null,null,0,0]
[null,null,null,null,null,null,null,null,null,null,null,null,null,null,null,null,null,null,null,null,null,null,null,null,null,null,null,null,null,null,null,null,null,null,null,null,0,0]
[null,null,null,null,null,null,null,null,null,null,null,null,null,null,null,null,null,null,null,null,null,null,null,null,null,null,null,null,null,null,null,null,null,null,null,null,0,0]
[null,null,null,null,null,null,null,null,null,null,null,null,null,null,null,null,null,null,null,null,null,null,null,null,null,null,null,null,null,null,null,null,null,null,null,null,0,0]
[null,null,null,null,null,null,null,null,null,null,null,null,null,null,null,null,null,null,null,null,null,null,null,null,null,null,null,null,null,null,null,null,null,null,null,null,0,0]
[null,null,null,null,null,null,null,null,null,null,null,null,null,null,null,null,null,null,null,null,null,null,null,null,null,null,null,null,null,null,null,null,null,null,null,null,0,0]
[null,null,null,null,null,null,null,null,null,null,null,null,null,null,null,null,null,null,null,null,null,null,null,null,null,null,null,null,null,null,null,null,null,null,null,null,0,0]
[null,null,null,null,null,null,null,null,null,null,null,null,null,null,null,null,null,null,null,null,null,null,null,null,null,null,null,null,null,null,null,null,null,null,null,null,0,0]
[null,null,null,null,null,null,null,null,null,null,null,null,null,null,null,null,null,null,null,null,null,null,null,null,null,null,null,null,null,null,null,null,null,null,null,null,0,0]
[null,null,null,null,null,null,null,null,null,null,null,null,null,null,null,null,null,null,null,null,null,null,null,null,null,null,null,null,null,null,null,null,null,null,null,null,0,0]
[null,null,null,null,null,null,null,null,null,null,null,null,null,null,null,null,null,null,null,null,null,null,null,null,null,null,null,null,null,null,null,null,null,null,null,null,0,0]
[null,null,null,null,null,null,null,null,null,null,null,null,null,null,null,null,null,null,null,null,null,null,null,null,null,null,null,null,null,null,null,null,null,null,null,null,0,0]
[null,null,null,null,null,null,null,null,null,null,null,null,null,null,null,null,null,null,null,null,null,null,null,null,null,null,null,null,null,null,null,null,null,null,null,null,0,0]
[null,null,null,null,null,null,null,null,null,null,null,null,null,null,null,null,null,null,null,null,null,null,null,null,null,null,null,null,null,null,null,null,null,null,null,null,0,0]
[null,null,null,null,null,null,null,null,null,null,null,null,null,null,null,null,null,null,null,null,null,null,null,null,null,null,null,null,null,null,null,null,null,null,null,null,0,0]
[null,null,null,null,null,null,null,null,null,null,null,null,null,null,null,null,null,null,null,null,null,null,null,null,null,null,null,null,null,null,null,null,null,null,null,null,0,0]
[null,null,null,null,null,null,null,null,null,null,null,null,null,null,null,null,null,null,null,null,null,null,null,null,null,null,null,null,null,null,null,null,null,null,null,null,0,0]
[null,null,null,null,null,null,null,null,null,null,null,null,null,null,null,null,null,null,null,null,null,null,null,null,null,null,null,null,null,null,null,null,null,null,null,null,0,0]
[null,null,null,null,null,null,null,null,null,null,null,null,null,null,null,null,null,null,null,null,null,null,null,null,null,null,null,null,null,null,null,null,null,null,null,null,0,0]
[null,null,null,null,null,null,null,null,null,null,null,null,null,null,null,null,null,null,null,null,null,null,null,null,null,null,null,null,null,null,null,null,null,null,null,null,0,0]
[null,null,null,null,null,null,null,null,null,null,null,null,null,null,null,null,null,null,null,null,null,null,null,null,null,null,null,null,null,null,null,null,null,null,null,null,0,0]
[null,null,null,null,null,null,null,null,null,null,null,null,null,null,null,null,null,null,null,null,null,null,null,null,null,null,null,null,null,null,null,null,null,null,null,null,0,0]
[null,null,null,null,null,null,null,null,null,null,null,null,null,null,null,null,null,null,null,null,null,null,null,null,null,null,null,null,null,null,null,null,null,null,null,null,0,0]